Cogmind - Beta 16.1 @@@ ROGUE MODE // 2026.03.26 @ 01:09:46 Player: morimori Result: Destroyed by G-34 Mercenary with Small Laser Performance ------------- Evolutions (0) 0 Regions Visited (2) 400 Robots Destroyed (27) 135 Value Destroyed (602) 602 Prototype IDs (0) 0 Alien Tech Used (0) 0 Bonus (0) 0 TOTAL SCORE: 1137 Bonus ------- None Cogmind --------- Core Integrity 0/250 Matter 268/300 Energy 237/250 System Corruption 2% Temperature Warning (312) Movement Core (1550) Ox30 Location -10/Mines Parts ------- > --- POWER (1) -------- Ion Engine > --- PROPULSION (2) --- Light Treads > --- UTILITY (2) ------ Huge Storage Unit Seismic Detector > --- WEAPON (2) ------- Particle Gun Assault Rifle > --- INVENTORY (25) --- Light Ion Engine Light Ion Engine Light Ion Engine Light Treads Wheel Wheel Hover Unit Heat Sink Heat Sink Improved Heat Sink Large Storage Unit Seismic Detector Beam Cannon Beam Cannon Beam Cannon Assault Rifle Light Assault Rifle Peak State ------------ > --- POWER ------------ Light Ion Engine > --- PROPULSION ------- Light Treads Wheel > --- UTILITY ---------- Improved Heat Sink Large Storage Unit > --- WEAPON ----------- Particle Gun Assault Rifle > --- INVENTORY -------- Light Ion Engine Light Ion Engine Light Treads Wheel Wheel Hover Unit Heat Sink Heat Sink Seismic Detector Seismic Detector Beam Cannon Beam Cannon Beam Cannon Assault Rifle Light Assault Rifle [Rating: 11] Favorites ----------- Power Ion Engine Engine Ion Engine Propulsion Wheel Treads Light Treads Wheel Wheel Utility Large Storage Unit Device Seismic Detector Storage Large Storage Unit Weapon Light Assault Rifle Energy Gun Particle Gun Ballistic Gun Light Assault Rifle Build | -11 -10 -10 ------- Run | Yrd Mat Min Slots Evolved . | . . . Power . | . . . Propulsion . | . . . Utility . | . . . Weapon . | . . . Parts Attached 22 | 6 12 4 Power 3 | 1 1 1 Engine 3 | 1 1 1 Core . | . . . Reactor . | . . . Propulsion 3 | 2 1 . Treads 1 | 1 . . Leg . | . . . Wheel 2 | 1 1 . Hover . | . . . Flight . | . . . Utility 10 | 1 6 3 Device 7 | . 5 2 Storage 3 | 1 1 1 Processor . | . . . Hackware . | . . . Protection . | . . . Artifact . | . . . Weapon 6 | 2 4 . Energy Gun 2 | . 2 . Energy Cannon . | . . . Ballistic Gun 4 | 2 2 . Ballistic Cannon . | . . . Launcher . | . . . Special Weapon . | . . . Impact Weapon . | . . . Slashing Weapon . | . . . Piercing Weapon . | . . . Special Melee Weapon . | . . . Unidentified Prototypes . | . . . Corrupted Parts 1 | . 1 . System Corruption 2 | . 2 . Parts Lost 7 | . 6 1 Power 1 | . 1 . Propulsion 2 | . 1 1 Utility 2 | . 2 . Weapon 2 | . 2 . Highest Loss Streak 3 | . 3 1 To Critical Strikes . | . . . Average Backups 10 | 3 9 15 Power 1 | . 2 2 Propulsion 3 | 1 3 4 Utility 2 | . 1 4 Weapon 3 | . 2 5 Tool/Special . | . . . Unused Backups 15 | . 3 12 Power 2 | . . 2 Propulsion 5 | . 1 4 Utility 2 | . 1 1 Weapon 6 | . 1 5 Tool/Special . | . . . Average Slot Usage (%) 95 | . 93 100 Engine 13 | . 13 14 Treads 13 | . 13 14 Wheel 13 | . 13 14 Device 10 | . 9 14 Storage 14 | . 14 14 Energy Gun 9 | . 7 14 Ballistic Gun 18 | . 19 14 Peak Build Rating 11 | 6 9 11 Average Rating 7 | 4 7 10 On Entrance 5 | . 6 9 Avg Prop Armor Cover (%) 12 | 14 12 12 Naked Turns . | . . . Heaviest Build 91 | 13 33 91 Greatest Support 20 | 10 20 10 Greatest Overweight (x) 9 | 1 3 9 Average Overweight (x) 2 | . 1 3 Largest Inventory Capacity 25 | 8 15 25 Average Capacity 14 | 7 14 16 Most Carried 17 | 6 15 17 Average Carried 10 | 3 9 15 Final Capacity 25 | 8 15 25 Final Carried 17 | 6 15 17 Class Distribution -------------------- 56% | Mutant 43% | Scavenger-Mutant Dominant Class ---------------- Mutant | -10/Materials Scavenger-Mutant | -10/Mines Resources | -11 -10 -10 ----------- Run | Yrd Mat Min Matter Collected 714 | 288 333 93 Remotely . | . . . Salvage Created 968 | 151 669 148 Parts 45 | 6 32 7 Haulers Intercepted 2 | . 2 . Recyclers Shooed . | . . . Parts Field Recycled . | . . . Retrieved Matter . | . . . Parts Self-Destructed . | . . . Prevented . | . . . Parts Restored . | . . . Kills | -11 -10 -10 ------- Run | Yrd Mat Min Combat Hostiles Destroyed 18 | . 13 5 Guns 17 | . 12 5 AOE 1 | . 1 . Classes Destroyed 7 | 2 5 . Builder 1 | . 1 . Tunneler 3 | 2 1 . Hauler 2 | . 2 . Recycler 2 | 1 1 . Operator 1 | . 1 . Swarmer 5 | . 3 2 Grunt 13 | . 10 3 Best Kill Streak 3 | 3 3 3 Combat Bots Only 3 | . 2 3 Max Kills in Single Turn 2 | 1 2 1 Gunslinging . | . . . Exploded 1 | . 1 . Melee . | . . . Uniques/NPCs Destroyed . | . . . Combat | -11 -10 -10 -------- Run | Yrd Mat Min Hostile Shots Fired 124 | . 76 48 Missed 36 | . 23 13 Hits 88 | . 53 35 Projectile 88 | . 53 35 AOE 1 | . 1 . Critical Strikes 1 | . . 1 Damage Taken 1084 | . 690 394 Core 259 | . 145 114 Absorbed by Shields . | . . . Regen/Repaired (Parts) 155 | . 155 . Core Remaining (%) 100 | 100 . . Volleys Fired 108 | 7 87 14 Largest 2 | 2 2 2 Hottest 85 | 40 85 85 Shots Fired 207 | 14 165 28 Gun 207 | 14 165 28 Cannon . | . . . Launcher . | . . . Special . | . . . Kinetic 161 | 14 133 14 Thermal 32 | . 18 14 Explosive . | . . . Electromagnetic 14 | . 14 . Robot Hit Streak 15 | 9 11 15 Robot Miss Streak 3 | 1 3 2 Penetration Max . | . . . Secondary Targets 6 | . 2 4 Max Gunslinging Chain 1 | . 1 1 Shots Hit Robots 144 | 11 112 21 Core Hits 51 | 5 38 8 Critical Kills . | . . . Critical Parts Destroyed 1 | . 1 . Critical Strikes 3 | . 3 . Burn 2 | . 2 . Destroy 1 | . 1 . Melee Attacks . | . . . Impact . | . . . Slashing . | . . . Piercing . | . . . Sneak Attacks . | . . . Combat Hostiles . | . . . Follow-up Attacks . | . . . Damage Inflicted 1682 | 108 1264 310 Guns 1559 | 108 1141 310 Cannons . | . . . Explosions 123 | . 123 . Melee . | . . . Ramming . | . . . Kinetic 991 | 108 768 115 Thermal 536 | . 341 195 Explosive . | . . . Electromagnetic 155 | . 155 . Impact . | . . . Slashing . | . . . Piercing . | . . . Highest Corruption 2 | . 2 2 Average Corruption 2 | . 2 2 Corruption Purged . | . . . Corruption Blocked . | . . . Effects 17 | . 9 8 Message Errors 4 | . 2 2 Matter Fused 5 | . 3 2 Heat Flow Errors 2 | . 1 1 Energy Discharges 1 | . 1 . Parts Rejected 1 | . . 1 Data Loss (minor) 2 | . 1 1 Misfires 1 | . 1 . Alerts 1 | . . 1 Overload Shots . | . . . Overflow Damage 6 | . 6 . Projectiles . | . . . Explosions 6 | . 6 . Melee . | . . . Knockbacks . | . . . Impact . | . . . Kinetic . | . . . Secondary . | . . . Self-Inflicted Damage 20 | . 20 . Shots 1 | . 1 . Rammed . | . . . Targets Rammed . | . . . Kicked . | . . . Crushed . | . . . Highest Temperature 312 | . 262 312 Average Temperature 60 | . 44 102 Received Heat Transfer 477 | . 297 180 Siege Activations . | . . . Martial Activations . | . . . Shielding Activations . | . . . Robots Disrupted . | . . . Combat Hostiles . | . . . Robots Corrupted . | . . . Combat Hostiles . | . . . Parts Fried . | . . . Impact Corruptions . | . . . Robots Melted . | . . . Combat Hostiles . | . . . Parts Melted 1 | . 1 . Heat Transferred 1310 | . 866 444 Parts Sabotaged . | . . . Parts Stolen . | . . . Parts Stripped . | . . . Power Chain Reactions 1 | . 1 . Alert | -11 -10 -10 ------- Run | Yrd Mat Min Maximum Alert Level . | . . . Low Security (%) 100 | 100 100 100 Level 1 . | . . . Level 2 . | . . . Level 3 . | . . . Level 4 . | . . . Level 5 . | . . . High Security . | . . . Max Security . | . . . Peak Influence 105 | 10 105 60 Initial 3 | . 3 1 Average 30 | 2 39 8 Influence Increases 629 | 15 484 130 Destroy 0b10 Robot/C 360 | . 260 100 Destroy 0b10 Robot/NC 45 | 15 30 . Destroy Leader 84 | . 54 30 Successful Hack 32 | . 32 . Destroy Structure 3 | . 3 . Lose Combat Pursuer 105 | . 105 . Influence Decreases 569 | 10 484 75 Entered New Map 6 | . 2 4 Time Decay 493 | 10 422 61 Lost Part 70 | . 60 10 Squads Dispatched 3 | . 3 . Investigation 2 | . 2 . Extermination . | . . . Reinforcement 1 | . 1 . Assault . | . . . Garrison . | . . . Intercept . | . . . Searches Triggered . | . . . Construction Impeded . | . . . Haulers Reinforced . | . . . Active Scanning Responses . | . . . Cargo Convoy Interrupts . | . . . Stealth | -11 -10 -10 --------- Run | Yrd Mat Min Distress Signals 4 | . 4 . Communications Jammed . | . . . Distress Signals . | . . . Times Spotted 39 | . 32 7 Peak Tracking Total 6 | . 6 5 Tactical Retreats 4 | . 4 . Traps | -11 -10 -10 ------- Run | Yrd Mat Min Traps Triggered 2 | . 2 . Indirectly . | . . . Trap Hack Attempts . | . . . Triggered . | . . . Disarmed . | . . . Reprogrammed . | . . . Reused . | . . . Traps Extracted . | . . . Installed . | . . . Triggered . | . . . Machines | -11 -10 -10 ---------- Run | Yrd Mat Min Machines Disabled . | . . . Max in Single Turn . | . . . Machines Repaired . | . . . Machines Dismantled . | . . . Machines Sabotaged . | . . . Overloaded Fab Kills . | . . . Hacking | -11 -10 -10 --------- Run | Yrd Mat Min Machines Accessed 8 | . 8 . Terminals 7 | . 7 . Fabricators . | . . . Repair Stations 1 | . 1 . Recycling Units . | . . . Scanalyzers . | . . . Garrison Access . | . . . Total Hacks 37 | . 37 . Successful 18 | . 18 . Failed 18 | . 18 . Catastrophic . | . . . Database Lockouts 1 | . 1 . Manual 31 | . 31 . Terminals 32 | . 32 . Fabricators . | . . . Repair Stations 5 | . 5 . Recycling Units . | . . . Scanalyzers . | . . . Garrison Access . | . . . Terminal Hacks 5 | . 5 . Part Schematic 2 | . 2 . Robot Analysis 1 | . 1 . Terminal Index 1 | . 1 . Locate Traps 1 | . 1 . Fabricator Hacks . | . . . Repair Station Hacks 4 | . 4 . Scan Component 2 | . 2 . Repair 2 | . 2 . Recycling Unit Hacks . | . . . Scanalyzer . | . . . Garrison Access Hacks . | . . . Unauthorized Hacks 9 | . 9 . Terminals 9 | . 9 . Assimilate 1 | . 1 . Botnet 4 | . 4 . Operators 1 | . 1 . Skim 3 | . 3 . Fabricators . | . . . Repair Stations . | . . . Recycling Units . | . . . Scanalyzers . | . . . Garrison Access . | . . . Data Cores Recovered . | . . . Used . | . . . Hacking Detections 6 | . 6 . Full Trace Events 4 | . 4 . Feedback Events . | . . . Feedback Blocked . | . . . Robot Schematics Acquired . | . . . Robots Built . | . . . Authchips . | . . . Time . | . . . Total Robot Build Rating . | . . . Part Schematics Acquired 2 | . 2 . Parts Built . | . . . Authchips . | . . . Time . | . . . Total Part Build Rating . | . . . Part Studies Acquired . | . . . Parts Repaired 2 | . 2 . Time 58 | . 58 . Parts Recycled . | . . . Recycled Matter . | . . . Retrieved Matter . | . . . Retrieved Components . | . . . Parts Scanalyzed . | . . . Part Schematics Acquired . | . . . Parts Damaged . | . . . Bothacking | -11 -10 -10 ------------ Run | Yrd Mat Min Used RIF Installer . | . . . Robots Hacked . | . . . Non-combat . | . . . Combat . | . . . Robot Hacks Applied . | . . . Relay Couplers Released . | . . . Fabnet Peak Effective % . | . . . Robots Rewired . | . . . Allies Hacked . | . . . Hacks Repelled . | . . . Allies | -11 -10 -10 -------- Run | Yrd Mat Min Total Allies 1 | . 1 . Largest Group 1 | . 1 1 Highest-Rated Group 10 | . 10 10 Highest-Rated Ally 10 | . 10 10 Total Orders . | . . . Ally Attacks . | . . . Total Damage . | . . . Kills . | . . . Allies Corrupted . | . . . Allies Melted . | . . . Intel | -11 -10 -10 ------- Run | Yrd Mat Min Active Infowar (turns) 782 | . 629 153 Seismic 782 | . 629 153 Robot Analysis Total 1 | . 1 . Derelict Logs Recovered . | . . . Drone Launches . | . . . Drone Recoveries . | . . . Exploration | -11 -10 -10 ------------- Run | Yrd Mat Min Turns Passed 1746 | 79 1286 381 Spaces Moved 1024 | 47 721 256 Core 5 | 5 . . Treads 35 | . 35 . Legs . | . . . Wheels 984 | 42 686 256 Hover . | . . . Flight . | . . . Fastest Speed 50 | 50 95 110 Average Speed 118 | 86 116 128 Slowest Speed 240 | 95 240 215 Overloaded Moves . | . . . Propulsion Burnouts . | . . . Robots Hopped . | . . . Potential Cave-ins . | . . . Cave-ins Triggered . | . . . Exploration Rate (%) 52 | 4 93 61 Regions Visited 2 Branch Regions 1 Pre-discovered Areas . | . . . Known Exits Taken . | . . . Unknown Exits Taken 2 | 1 1 . Scrap Searched 1 | . . 1 Spaces Dug . | . . . Terrain Destroyed 2 | . 2 . Melee . | . . . Projectile . | . . . AOE 2 | . 2 . Terrain Rammed . | . . . Walls Destroyed . | . . . Machines Disabled . | . . . Actions | -11 -10 -10 --------- Run | Yrd Mat Min Total 1373 | 70 1022 281 Wait 182 | 4 178 . Move 1022 | 46 720 256 Hop . | . . . Pick Up 23 | 7 14 2 Fast Attach 18 | 5 12 1 Attach 3 | 1 2 . Detach 1 | . 1 . Swap 8 | . 3 5 Drop 8 | . 5 3 Fire 108 | 7 87 14 Melee . | . . . Ram . | . . . Kick . | . . . Crush . | . . . Escape Stasis . | . . . Rewire . | . . . Trap . | . . . Miscellaneous . | . . . Route ------- -11/Scrapyard -10/Materials (discovered 5 exits: [*Mat x2] / [*Min x2] / [*Sub]) -10/Mines (discovered 1 exit: [*Exi]) History --------- Turn | Location | Event 10 | -11/Scrapyard | Discovered new exit (range 15) 80 | -11/Scrapyard | Entered Materials 290 | -10/Materials | Discovered new exit (range 9) 304 | -10/Materials | Build established: Mutant 350 | -10/Materials | Discovered new exit (range 7) 643 | -10/Materials | Lost 3 parts (1p1u1w) 691 | -10/Materials | Core integrity fell below 50% 814 | -10/Materials | Discovered new exit (range 16) 898 | -10/Materials | Central database locked down 933 | -10/Materials | Discovered new exit (range 16) 982 | -10/Materials | Repaired Lgt. Treads 1015 | -10/Materials | Repaired Particle Gun 1278 | -10/Materials | Discovered new exit (range 9) 1366 | -10/Materials | Entered Mines 1366 | -10/Mines | Accompanied by 1 ally 1375 | -10/Mines | Met a Derelict bent on vengeance 1595 | -10/Mines | Deemed a non-threat by the Exiles lab entrance 1595 | -10/Mines | Discovered new exit (range 5) 1728 | -10/Mines | Core integrity fell below 20% 1747 | -10/Mines | Destroyed by G-34 Mercenary with Small Laser Last Messages --------------- 01689_ Searching scrap... 01689_ Found Lgt. Ion Engine. 01689_ Found Flight Unit. 01689_ Found Huge Storage Unit. 01689_ Found 42 Matter. 01690_ Acquired 28 matter. 01691_ Dropped Lrg. Storage Unit. 01693_ Acquired Lrg. Storage Unit. 01694_ Acquired 10 matter. 01698_ Acquired Lgt. Ion Engine. 01727_ S-10 Pest destroyed. 01727_ Switching to secondary target: G-47 Trooper. 01728_ S-10 Pest destroyed. 01730_ Switching to secondary target: G-47 Trooper. 01732_ Critical hit (Burn: +37). 01744_ System corrupted: Particle Gun rejected. 01745_ Acquired Particle Gun. 01745_ Wheel destroyed. 01746_ G-47 Trooper destroyed. 01746_ Switching to secondary target: G-34 Mercenary. Map ----- +----------------------------------------------------+ | ??????????? ####???????#### ## #???????? | | ???????????# ???######## #?# #??????? | | ???????????# ???# #?? #??????? | | ????????????# ??# #########??# #??????? | | ?????????????# ??# #??????????? #?????? | | ??????????????# ??# #??????????? #?????? | | ???????????????# #?# ####????????# ?????? | | ???????????????# ## ##????????# #????? | | ????????????????# ##????????? ????? | | ????????????????## ##????????? ?????? | | ?????????????????# #????????????????? | | ?????????????????## #### #????????????????? | | ??????????????????####?# #????????????????? | | ???????????????????????# ##????????????????? | | ???????????????????????# ##?????????????????? | | ???????????????????????# #??????????????????? | | ???????# ?????????????# #??????????????????? | | ????????# ????????????# #??????????????????? | | ????????# ??????????#%=#??????????????????? | | ???????## ?????????# #??????????????????? | | ??????## ####????# #??????????????????? | | ??????# ##### ##?????????????????? | | ??????# ==%* #?????????????????? | | ???????# %g= #?????????????????? | | ?????????"""" %o ##?????????????????? | | ??????????""" ## @## ##??????????????????? | | ??????????""" #?##### #???????????????????? | | ????????? #?????? #???????????????????? | | ???????? ##???????###???????????????????? | | ??????? ????????????????????????????????? | | ?????? ?????????????????????????????????? | | ??????? ??????????????????????????????????? | | ???????# ???????????????????????????????????? | | ????????#????????????????????????????????????? | | ?????????????????????????????????????????????? | | ?????????????????????????????????????????????? | | ?????????????????????????????????????????????? | | ?????????????????????????????????????????????? | | ?????????????????????????????????????????????? | | ?????????????????????????????????????????????? | | ?????????????????????????????????????????????? | | ?????????????????????????????????????????????? | | | | | | | | | | | | | | | | | +----------------------------------------------------+ Best States ------------- Heat Dissipation 39 Energy Generation 10 Energy Capacity 250 Matter Stores 300 Matter Capacity 300 Sight Range 16 Terrain Scan Density 10 Evasion (%) 44 Recoil Reduction 1 Item Schematics ----------------- Hcp. Storage Unit | -10/Materials | Hacked Huge Storage Unit | -10/Materials | Hacked Robot Schematics ------------------ None Fabricated ------------ Nothing Repaired ---------- Lgt. Treads | 20% | -10/Materials Particle Gun | 41% | -10/Materials Studied --------- None Alien Tech Used ----------------- None Achievements -------------- None Challenges ------------ None Game ------ Seed DataMatterReplica Manual? 0 Play Time 00:16:35 Cumulative 532.9 hours Start 2026.03.26 @ 00:37:11 End 2026.03.26 @ 01:09:46 Sessions 1 Manual Loads 0 Difficulty Rogue Special Mode None Game No. 250 Rogue 250 Adventurer 0 Explorer 0 Win Type - Total 10 Types 8/0/1/0/0/0/1/0/0/0 Lore% 73 Gallery% 71 Achievement% 51 Wizard Run 0 Options --------- Layout 0 ASCII 0 Keyboard 1 Movement Vi Keybinds 0 Fullscreen 2 Font 18/SmallcapsGlow Map View 76x50 Zoom Use 0% Tactical HUD 1 Map Filters NONE Filters NONE Steam 1 RUN: b8391387-c552-4e22-ac9d-f4cd54bb0b9b